Cogmind - Beta 15 @@@ ROGUE MODE // 2025.10.01 @ 21:53:17 Player: Beepinex Result: Destroyed by S-27 Virus with Autogun Performance ------------- Evolutions (4) 2000 Regions Visited (8) 1600 Robots Destroyed (150) 750 Value Destroyed (4890) 4890 Prototype IDs (43) 860 Alien Tech Used (0) 0 Bonus (867) 867 TOTAL SCORE: 10967 Bonus ------- High Alert Combat Kills 91 Follower Combat Kills 476 Aligned with FarCom 300 Cogmind --------- Core Integrity 0/850 Matter 249/300 Energy 132/150 System Corruption 8% Temperature Cool (0) Movement Walking (120) Location -6/Factory Parts ------- > --- POWER (2) -------- Light Angular Momentum Engine > --- PROPULSION (3) --- Carbon-fiber Leg Carbon-fiber Leg > --- UTILITY (7) ------ Hardened Medium Armor Plating Hacking Suite Hacking Suite > --- WEAPON (3) ------- Heavy Laser > --- INVENTORY (5) ---- High-capacity Matter Pod (200) Weapon Mount Remote Datajack Peak State ------------ > --- POWER ------------ Heavy Deuterium Engine Enhanced Nuclear Core > --- PROPULSION ------- Armored Treads Armored Treads Wheel > --- UTILITY ---------- Cryofiber Web Advanced Heat Sink Medium Storage Unit Target Analyzer Hardened Medium Armor Plating Hacking Suite Hacking Suite > --- WEAPON ----------- Precision Beam Rifle Plasma Rifle Plasma Cannon > --- INVENTORY -------- Armored Treads High-capacity Matter Pod Weapon Mount Weapon Mount High-powered Shock Rifle High-powered Shock Rifle Improved Assault Rifle Remote Datajack Field Lobotomy Kit [Rating: 55] Favorites ----------- Power Improved Deuterium Engine Engine Improved Deuterium Engine Power Core Enhanced Nuclear Core Reactor Light Antimatter Reactor Propulsion Armored Treads Treads Armored Treads Leg Improved Carbon-fiber Leg Wheel Wheel Hover Unit Gravmag System Utility Hacking Suite Device Cryofiber Web Storage Medium Storage Unit Processor Target Analyzer Hackware Hacking Suite Protection Hardened Medium Armor Plating Weapon Field Laser Energy Gun Field Laser Energy Cannon Beam Cannon Ballistic Gun Assault Rifle Ballistic Cannon Magnetic Acceleration Cannon Launcher Improved Proton Missile Launcher Special Weapon Field Lobotomy Kit Build | -11 -10 -10 -10 -9 -8 -7 -7 -6 ------- Run | Yrd Mat Min Exi Min Mat Fac Sto Fac Slots Evolved 8 | . . . . . 4 2 . 2 Power 1 | . . . . . 1 . . . Propulsion 1 | . . . . . 1 . . . Utility 5 | . . . . . 2 2 . 1 Weapon 1 | . . . . . . . . 1 Parts Attached 129 | 7 4 3 2 . 34 25 12 42 Power 26 | 1 . . 1 . 9 6 2 7 Engine 19 | 1 . . 1 . 6 5 1 5 Core 6 | . . . . . 3 1 1 1 Reactor 1 | . . . . . . . . 1 Propulsion 32 | 2 . 2 . . 7 8 2 11 Treads 12 | 1 . . . . 1 6 1 3 Leg 6 | . . . . . 3 . . 3 Wheel 12 | 1 . 2 . . 3 2 1 3 Hover 2 | . . . . . . . . 2 Flight . | . . . . . . . . . Utility 36 | 2 2 1 . . 9 5 5 12 Device 15 | 1 1 . . . 3 1 3 6 Storage 2 | 1 . . . . 1 . . . Processor 5 | . 1 . . . 2 1 . 1 Hackware 4 | . . . . . 1 . 1 2 Protection 10 | . . 1 . . 2 3 1 3 Artifact . | . . . . . . . . . Weapon 35 | 2 2 . 1 . 9 6 3 12 Energy Gun 18 | 1 . . . . 6 3 1 7 Energy Cannon 4 | . 1 . . . . 2 1 . Ballistic Gun 8 | 1 . . . . 3 1 1 2 Ballistic Cannon 1 | . . . . . . . . 1 Launcher 2 | . 1 . . . . . . 1 Special Weapon 2 | . . . 1 . . . . 1 Impact Weapon . | . . . . . . . . . Slashing Weapon . | . . . . . . . . . Piercing Weapon . | . . . . . . . . . Special Melee Weapon . | . . . . . . . . . Unidentified Prototypes 6 | . . . 1 . . 1 4 . Parts Lost 63 | . . 2 . . 11 9 5 36 Power 11 | . . . . . 2 2 . 7 Propulsion 20 | . . 1 . . 5 3 2 9 Utility 16 | . . 1 . . 1 1 3 10 Weapon 16 | . . . . . 3 3 . 10 Highest Loss Streak 12 | . . 2 . . 7 3 2 12 To Critical Strikes . | . . . . . . . . . Average Backups 8 | 3 6 6 7 8 7 8 9 8 Power . | . 1 1 1 1 . . 1 . Propulsion 1 | 1 2 1 2 2 . 1 1 . Utility 2 | . 1 2 2 2 3 3 1 2 Weapon 2 | . 1 2 2 2 1 2 3 2 Tool/Special . | . . . . . . . . . Unused Backups 15 | . 3 1 . . 5 2 . 4 Power 4 | . . 1 . . . 1 . 2 Propulsion 1 | . . . . . 1 . . . Utility 6 | . 2 . . . 3 . . 1 Weapon 3 | . 1 . . . . 1 . 1 Tool/Special 1 | . . . . . 1 . . . Average Slot Usage (%) 94 | . 99 96 100 100 92 98 98 89 Engine 10 | . 14 10 14 14 11 11 10 7 Core 2 | . . . . . 4 2 4 2 Treads 10 | . 14 14 14 14 2 9 14 11 Leg 3 | . . . . . 11 4 . . Wheel 7 | . 14 14 14 14 8 6 6 4 Device 9 | . 6 . . . 6 13 13 9 Storage 8 | . 14 14 14 14 9 7 7 5 Processor 6 | . 7 3 . . 8 8 7 5 Hackware 8 | . . . . . 8 7 12 15 Protection 4 | . . 10 14 14 2 6 2 3 Energy Gun 8 | . 11 . . . 7 10 6 8 Energy Cannon 3 | . 2 14 14 14 1 2 2 2 Ballistic Gun 6 | . 13 14 14 14 8 1 4 3 Peak Build Rating 55 | 9 9 7 16 8 34 44 46 55 Average Rating 32 | 5 7 6 7 8 26 38 43 48 On Entrance 16 | . 9 7 6 8 8 33 39 38 Naked Turns . | . . . . . . . . . Heaviest Build 56 | 14 15 18 18 18 40 51 51 56 Greatest Support 40 | 10 10 16 16 16 36 40 40 40 Greatest Overweight (x) 5 | 1 1 1 1 1 5 4 5 5 Average Overweight (x) 2 | . . . 1 1 1 3 3 3 Largest Inventory Capacity 10 | 8 8 8 8 8 10 10 10 10 Average Capacity 9 | 7 8 8 8 8 8 10 10 9 Most Carried 10 | 5 8 8 8 8 10 10 10 10 Average Carried 8 | 3 6 6 7 8 7 8 9 8 Final Capacity 10 | 8 8 8 8 8 10 10 10 5 Final Carried 10 | 4 8 8 8 8 10 8 8 3 Class Distribution -------------------- 43% | Mutant 21% | Scavenger-Mutant 17% | Hacker-Skirmisher 9% | Hacker-Mutant 3% | Hacker-Gunner 3% | Scavenger-Gunner Dominant Class ---------------- Mutant | -10/Materials Mutant | -10/Mines Mutant | -10/Exiles Mutant | -9/Mines Scavenger-Mutant | -8/Materials Mutant | -7/Factory Hacker-Mutant | -7/Storage Hacker-Skirmisher | -6/Factory Resources | -11 -10 -10 -10 -9 -8 -7 -7 -6 ----------- Run | Yrd Mat Min Exi Min Mat Fac Sto Fac Matter Collected 3384 | 330 353 183 . . 871 509 308 830 Remotely . | . . . . . . . . . Salvage Created 6341 | 182 251 432 . . 1150 1454 1243 1629 Parts 348 | 9 26 16 . . 74 83 59 81 Haulers Intercepted 9 | . 1 . . . 3 3 1 1 Recyclers Shooed 10 | . . 1 . . 2 3 2 2 Parts Field Recycled . | . . . . . . . . . Retrieved Matter . | . . . . . . . . . Parts Self-Destructed . | . . . . . . . . . Prevented . | . . . . . . . . . Kills | -11 -10 -10 -10 -9 -8 -7 -7 -6 ------- Run | Yrd Mat Min Exi Min Mat Fac Sto Fac Combat Hostiles Destroyed 102 | . 8 6 . . 23 18 19 28 Melee 2 | . . . . . . 1 1 . Guns 71 | . 8 2 . . 21 9 15 16 Cannons 18 | . . 4 . . 1 4 2 7 AOE 8 | . . . . . 1 4 . 3 Classes Destroyed 15 | 2 4 1 . . 2 4 1 1 Worker 12 | . . 1 . . 1 5 2 3 Builder 5 | . . . . . . 2 . 3 Tunneler 5 | 5 . . . . . . . . Hauler 9 | . 1 . . . 3 3 1 1 Recycler 11 | 1 . 2 . . 3 3 2 . Mechanic 1 | . . . . . . 1 . . Operator 1 | . . . . . . . . 1 Drone 1 | . . . . . . . 1 . Watcher 4 | . 1 . . . . 1 1 1 Swarmer 23 | . 6 . . . 11 . . 6 Grunt 41 | . 2 6 . . 4 7 15 7 Brawler 2 | . . . . . 1 1 . . Sentry 14 | . . . . . 7 2 3 2 Hunter 11 | . . . . . . 3 . 8 Programmer 11 | . . . . . . 5 1 5 Best Kill Streak 10 | 3 3 4 . . 5 8 10 3 Combat Bots Only 9 | . 3 2 . . 4 4 9 3 Max Kills in Single Turn 3 | 1 1 1 . . 2 3 1 2 Gunslinging . | . . . . . . . . . Exploded 3 | . . . . . 1 3 . 1 Melee 1 | . . . . . . 1 1 . Uniques/NPCs Destroyed . | . . . . . . . . . Combat | -11 -10 -10 -10 -9 -8 -7 -7 -6 -------- Run | Yrd Mat Min Exi Min Mat Fac Sto Fac Hostile Shots Fired 1051 | . 22 47 . . 163 204 151 464 Missed 292 | . 7 12 . . 35 60 41 137 Hits 759 | . 15 35 . . 128 144 110 327 Melee 2 | . . . . . . 2 . . Projectile 757 | . 15 35 . . 128 142 110 327 Critical Strikes 22 | . . 3 . . 6 5 2 6 Damage Taken 10431 | . 179 477 . . 1698 2028 1181 4868 Core 1479 | . 24 94 . . 241 152 112 856 Absorbed by Shields 280 | . . . . . . . . 280 Regen/Repaired (Parts) 80 | . . . . . . 80 . . Core Remaining (%) 67 | 100 . . . 52 56 . 62 . Volleys Fired 466 | 20 26 35 . . 99 80 66 140 Largest 3 | 2 2 2 . . 2 2 2 3 Hottest 216 | 60 80 80 . . 103 132 124 216 Shots Fired 877 | 38 51 56 . . 184 149 131 268 Gun 722 | 38 47 34 . . 168 127 108 200 Cannon 140 | . 3 22 . . 12 22 23 58 Launcher 7 | . 1 . . . 2 . . 4 Special 8 | . . . . . 2 . . 6 Kinetic 349 | 20 25 34 . . 114 14 35 107 Thermal 396 | 18 25 22 . . 62 80 75 114 Explosive 3 | . 1 . . . 2 . . . Electromagnetic 121 | . . . . . 4 55 21 41 Robot Hit Streak 38 | 5 14 7 . . 12 29 20 38 Robot Miss Streak 7 | 3 3 1 . . 7 3 4 5 Penetration Max 1 | . . . . . 1 . . 1 Secondary Targets 6 | . . . . . 1 . 3 2 Max Gunslinging Chain 1 | . . . . . 1 . 1 1 Shots Hit Robots 614 | 22 31 40 . . 133 113 86 189 Core Hits 283 | 7 14 15 . . 72 55 42 78 Critical Kills 7 | . 1 . . . 2 . . 4 Critical Parts Destroyed 6 | . . . . . 1 . . 5 Critical Strikes 47 | . 1 . . . 7 7 7 25 Burn 28 | . . . . . 4 6 7 11 Destroy 13 | . 1 . . . 3 . . 9 Blast 4 | . . . . . . . . 4 Corrupt 2 | . . . . . . 1 . 1 Melee Attacks . | . . . . . . . . . Impact . | . . . . . . . . . Slashing . | . . . . . . . . . Piercing . | . . . . . . . . . Sneak Attacks . | . . . . . . . . . Combat Hostiles . | . . . . . . . . . Follow-up Attacks . | . . . . . . . . . Damage Inflicted 11946 | 256 397 585 . . 2314 2330 1659 4405 Guns 8710 | 256 362 305 . . 2088 1563 1246 2890 Cannons 2172 | . 35 280 . . 191 455 410 801 Explosions 1023 | . . . . . 35 301 . 687 Melee . | . . . . . . . . . Ramming 41 | . . . . . . 11 3 27 Kinetic 4058 | 134 182 305 . . 1500 171 280 1486 Thermal 5910 | 122 215 280 . . 766 1320 966 2241 Explosive . | . . . . . . . . . Electromagnetic 1937 | . . . . . 48 828 410 651 Impact . | . . . . . . . . . Slashing . | . . . . . . . . . Piercing . | . . . . . . . . . Highest Corruption 8 | . 4 4 4 4 5 8 8 8 Average Corruption 3 | . 2 4 4 4 4 3 8 1 Corruption Purged . | . . . . . . . . . Corruption Blocked . | . . . . . . . . . Effects 136 | . 16 9 9 . 24 33 25 20 Message Errors 28 | . 4 1 2 . 3 7 5 6 Matter Fused 37 | . 5 2 6 . 7 6 7 4 Heat Flow Errors 12 | . . 2 . . 3 2 3 2 Energy Discharges 13 | . 4 . . . 1 5 3 . Parts Rejected 2 | . . . . . . . 1 1 Parts Fused 2 | . 1 . . . 1 . . . Data Loss (minor) 20 | . 2 . 1 . 2 8 2 5 Data Loss (major) 9 | . . 2 . . 2 2 3 . Misfires 5 | . . . . . 2 2 1 . Alerts 5 | . . 1 . . 2 . . 2 Weapon Failures 3 | . . 1 . . 1 1 . . Overload Shots . | . . . . . . . . . Overflow Damage 67 | . . . . . 2 45 . 20 Projectiles 2 | . . . . . 2 . . . Explosions 65 | . . . . . . 45 . 20 Melee . | . . . . . . . . . Knockbacks 7 | . . . . . . . . 7 Impact . | . . . . . . . . . Kinetic 6 | . . . . . . . . 6 Secondary 1 | . . . . . . . . 1 Self-Inflicted Damage 299 | . . . . . . 151 . 148 Shots 6 | . . . . . . 3 . 3 Rammed 14 | . . . . . 1 3 1 9 Targets Rammed 17 | . . . . . 1 4 2 10 Kicked 1 | . . . . . . . . 1 Crushed 2 | . . . . . . 1 1 . Highest Temperature 707 | . 56 411 . . 255 707 303 345 Average Temperature 115 | . 18 125 . . 67 270 89 86 Received Heat Transfer 2616 | . 33 324 . . 702 345 555 657 Effects 16 | . . 1 . . . 14 1 . Energy Bleed 2 | . . . . . . 2 . . Interference 7 | . . 1 . . . 5 1 . Matter Decay 3 | . . . . . . 3 . . Short Circuit 2 | . . . . . . 2 . . Damage (minor) 2 | . . . . . . 2 . . Siege Activations . | . . . . . . . . . Martial Activations . | . . . . . . . . . Shielding Activations . | . . . . . . . . . Robots Disrupted 1 | . . . . . . 1 . . Combat Hostiles 1 | . . . . . . 1 . . Robots Corrupted . | . . . . . . . . . Combat Hostiles . | . . . . . . . . . Parts Fried 2 | . . . . . . . 1 1 Impact Corruptions . | . . . . . . . . . Robots Melted 3 | . . . . . . . 1 2 Combat Hostiles 3 | . . . . . . . 1 2 Parts Melted 36 | . 1 1 . . 1 11 8 14 Heat Transferred 13384 | 275 474 592 . . 1661 2666 2516 5200 Parts Sabotaged . | . . . . . . . . . Parts Stolen . | . . . . . . . . . Parts Stripped . | . . . . . . . . . Power Chain Reactions 7 | . . . . . 1 2 . 4 Alert | -11 -10 -10 -10 -9 -8 -7 -7 -6 ------- Run | Yrd Mat Min Exi Min Mat Fac Sto Fac Maximum Alert Level 2 | . . . . . 2 1 1 1 Low Security (%) 75 | 100 100 100 . 100 48 64 90 84 Level 1 15 | . . . . . 8 35 9 15 Level 2 8 | . . . . . 43 . . . Level 3 . | . . . . . . . . . Level 4 . | . . . . . . . . . Level 5 . | . . . . . . . . . High Security . | . . . . . . . . . Max Security . | . . . . . . . . . Peak Influence 663 | 10 125 65 . . 663 318 312 291 Initial 297 | . . . . . . 297 122 133 Average 147 | . 44 23 . . 280 192 125 93 Influence Increases 4214 | 30 304 165 . . 1258 708 680 1069 Destroy 0b10 Robot/C 2340 | . 160 120 . . 720 360 380 600 Destroy 0b10 Robot/NC 255 | 30 10 15 . . 50 75 30 45 Destroy Leader 610 | . 34 30 . . 182 106 84 174 Allied During Kill 39 | . . . . . 32 . 4 3 Successful Hack 157 | . 16 . . . 59 45 15 22 Disable Machine 330 | . 30 . . . 105 60 45 90 Destroy Structure 123 | . 9 . . . 50 32 2 30 Lose Combat Pursuer 360 | . 45 . . . 60 30 120 105 Influence Decreases 4068 | 30 304 152 13 . 604 1091 657 1217 Entered New Map 680 | . . . 13 . . 357 149 161 Time Decay 2430 | 30 304 152 . . 484 644 318 498 Lost Part 580 | . . . . . 80 90 50 360 Lost Ally 250 | . . . . . 40 . 140 70 Purge Threat 128 | . . . . . . . . 128 Squads Dispatched 38 | . 1 . . . 7 11 4 15 Investigation 11 | . 1 . . . 4 4 . 2 Extermination 11 | . . . . . . 5 1 5 Reinforcement 15 | . . . . . 2 2 3 8 Assault . | . . . . . . . . . Garrison 1 | . . . . . 1 . . . Intercept . | . . . . . . . . . Searches Triggered . | . . . . . . . . . Construction Impeded 5 | . . . . . 1 . . 4 Haulers Reinforced 4 | . . . . . . . 2 2 Active Scanning Responses . | . . . . . . . . . Cargo Convoy Interrupts . | . . . . . . . . . Stealth | -11 -10 -10 -10 -9 -8 -7 -7 -6 --------- Run | Yrd Mat Min Exi Min Mat Fac Sto Fac Distress Signals 10 | . . . . . 3 . 1 6 Communications Jammed . | . . . . . . . . . Distress Signals . | . . . . . . . . . Times Spotted 192 | . 19 6 . . 44 27 32 64 Peak Tracking Total 9 | . 4 4 . . 8 4 9 5 Tactical Retreats 13 | . 2 . . . 3 1 2 5 Traps | -11 -10 -10 -10 -9 -8 -7 -7 -6 ------- Run | Yrd Mat Min Exi Min Mat Fac Sto Fac Traps Triggered 14 | . 3 . . . 4 3 1 3 Indirectly . | . . . . . . . . . Trap Hack Attempts . | . . . . . . . . . Triggered . | . . . . . . . . . Disarmed 4 | . . . . . . . 4 . Reprogrammed . | . . . . . . . . . Reused . | . . . . . . . . . Traps Extracted . | . . . . . . . . . Installed . | . . . . . . . . . Triggered . | . . . . . . . . . Machines | -11 -10 -10 -10 -9 -8 -7 -7 -6 ---------- Run | Yrd Mat Min Exi Min Mat Fac Sto Fac Machines Disabled 22 | . 2 . . . 7 4 3 6 Max in Single Turn 4 | . 2 . . . 1 4 1 1 Machines Repaired . | . . . . . . . . . Machines Dismantled . | . . . . . . . . . Machines Sabotaged . | . . . . . . . . . Overloaded Fab Kills . | . . . . . . . . . Hacking | -11 -10 -10 -10 -9 -8 -7 -7 -6 --------- Run | Yrd Mat Min Exi Min Mat Fac Sto Fac Machines Accessed 52 | . 9 1 4 . 14 11 4 9 Terminals 36 | . 7 1 . . 10 8 4 6 Fabricators 2 | . . . . . . 1 . 1 Repair Stations 1 | . . . . . . 1 . . Recycling Units 7 | . 2 . . . 2 1 . 2 Scanalyzers 2 | . . . . . 2 . . . Garrison Access . | . . . . . . . . . Total Hacks 182 | . 30 6 27 . 59 21 12 27 Successful 121 | . 13 2 27 . 41 11 8 19 Failed 61 | . 17 4 . . 18 10 4 8 Catastrophic 7 | . 2 1 . . . 3 . 1 Database Lockouts . | . . . . . . . . . Manual 95 | . 29 5 1 . 23 12 7 18 Terminals 101 | . 21 6 . . 33 15 12 14 Fabricators 5 | . . . . . . 3 . 2 Repair Stations 2 | . . . . . . 2 . . Recycling Units 25 | . 9 . . . 4 1 . 11 Scanalyzers 22 | . . . . . 22 . . . Garrison Access . | . . . . . . . . . Terminal Hacks 58 | . 3 2 27 . 13 3 6 4 Record 27 | . . . 26 . 1 . . . Part Schematic 1 | . . . . . . . 1 . Robot Analysis 3 | . 1 . . . 2 . . . Prototype ID Bank 8 | . 1 . . . 4 1 . 2 Open Door 3 | . . . . . . . 3 . Open DSF 2 | . . . . . . 1 . 1 Level Access Points 1 | . . . . . 1 . . . Branch Access Points 1 | . . . . . 1 . . . Emergency Access Points 1 | . . 1 . . . . . . Terminal Index 4 | . 1 . . . 1 1 1 . Recycling Unit Index 1 | . . . . . 1 . . . Unreport Threat 1 | . . . . . . . . 1 Locate Traps 1 | . . . . . 1 . . . Disarm Traps 1 | . . . . . . . 1 . Recall Reinforcements 1 | . . . . . 1 . . . Zone Layout 1 | . . 1 . . . . . . Proto ID Catalog 1 | . . . 1 . . . . . Fabricator Hacks 4 | . . . . . . 2 . 2 Load Schematic 2 | . . . . . . 1 . 1 Build 2 | . . . . . . 1 . 1 Repair Station Hacks 2 | . . . . . . 2 . . Scan Component 1 | . . . . . . 1 . . Repair 1 | . . . . . . 1 . . Recycling Unit Hacks 3 | . . . . . . . . 3 Report Inventory 1 | . . . . . . . . 1 Retrieve Matter 1 | . . . . . . . . 1 Retrieve Components 1 | . . . . . . . . 1 Scanalyzer 22 | . . . . . 22 . . . Insert Component 11 | . . . . . 11 . . . Analyze 11 | . . . . . 11 . . . Garrison Access Hacks . | . . . . . . . . . Unauthorized Hacks 32 | . 10 . . . 6 4 2 10 Terminals 13 | . 3 . . . 3 3 2 2 Assimilate 2 | . . . . . . 1 . 1 Botnet 8 | . 2 . . . 2 2 1 1 Disrupt 1 | . . . . . 1 . . . Operators 2 | . 1 . . . . . 1 . Fabricators . | . . . . . . . . . Repair Stations . | . . . . . . . . . Recycling Units 19 | . 7 . . . 3 1 . 8 Monitor 4 | . 2 . . . . . . 2 Reject 6 | . 2 . . . 1 1 . 2 Recyclers 3 | . 1 . . . . . . 2 Mask 6 | . 2 . . . 2 . . 2 Scanalyzers . | . . . . . . . . . Garrison Access . | . . . . . . . . . Data Cores Recovered . | . . . . . . . . . Used . | . . . . . . . . . Hacking Detections 43 | . 9 1 . . 12 11 2 8 Full Trace Events 9 | . 1 . . . 3 3 . 2 Feedback Events 1 | . 1 . . . . . . . Corruption 1 | . 1 . . . . . . . Feedback Blocked . | . . . . . . . . . Robot Schematics Acquired . | . . . . . . . . . Robots Built . | . . . . . . . . . Authchips . | . . . . . . . . . Time . | . . . . . . . . . Total Robot Build Rating . | . . . . . . . . . Part Schematics Acquired 12 | . . . . . 11 . 1 . Parts Built 4 | . . . . . . 2 . 2 Authchips . | . . . . . . . . . Time 109 | . . . . . . 36 . 73 Total Part Build Rating 12 | . . . . . . 6 . 6 Parts Repaired 1 | . . . . . . 1 . . Time 44 | . . . . . . 44 . . Parts Recycled . | . . . . . . . . . Recycled Matter . | . . . . . . . . . Retrieved Matter 34 | . . . . . . . . 34 Retrieved Components 10 | . . . . . . . . 10 Parts Scanalyzed 11 | . . . . . 11 . . . Part Schematics Acquired 11 | . . . . . 11 . . . Parts Damaged . | . . . . . . . . . Bothacking | -11 -10 -10 -10 -9 -8 -7 -7 -6 ------------ Run | Yrd Mat Min Exi Min Mat Fac Sto Fac Used RIF Installer . | . . . . . . . . . Robots Hacked 1 | . . . . . . . . 1 Non-combat . | . . . . . . . . . Combat 1 | . . . . . . . . 1 Robot Hacks Applied 2 | . . . . . . . . 2 parse_system 2 | . . . . . . . . 2 Relay Couplers Released . | . . . . . . . . . Fabnet Peak Effective % . | . . . . . . . . . Robots Rewired . | . . . . . . . . . Allies Hacked . | . . . . . . . . . Hacks Repelled . | . . . . . . . . . Allies | -11 -10 -10 -10 -9 -8 -7 -7 -6 -------- Run | Yrd Mat Min Exi Min Mat Fac Sto Fac Total Allies 8 | . . 2 . . 2 . . 4 Largest Group 2 | . . 2 . . 2 . . 2 Highest-Rated Group 111 | . . 35 . . 111 . . 66 Highest-Rated Ally 90 | . . 31 . . 90 . . 37 Total Orders 9 | . . . . . . . 8 1 ROAM 5 | . . . . . . . 5 . AID 1 | . . . . . . . . 1 RETURN 3 | . . . . . . . 3 . Ally Attacks 57 | . . . . . 44 . . 13 Total Damage 1766 | . . . . . 1556 . . 210 Kills 18 | . . . . . 16 . . 2 Allies Corrupted . | . . . . . . . . . Allies Melted . | . . . . . . . . . Field Lobotomies 5 | . . . . . 2 . . 3 Intel | -11 -10 -10 -10 -9 -8 -7 -7 -6 ------- Run | Yrd Mat Min Exi Min Mat Fac Sto Fac Active Infowar (turns) 240 | 3 237 . . . . . . . Terrain 240 | 3 237 . . . . . . . Robot Analysis Total 3 | . 1 . . . 2 . . . Derelict Logs Recovered 1 | . . 1 . . . . . . Drone Launches 23 | . . . . . . . 23 . Drone Recoveries 8 | . . . . . . . 8 . Exploration | -11 -10 -10 -10 -9 -8 -7 -7 -6 ------------- Run | Yrd Mat Min Exi Min Mat Fac Sto Fac Turns Passed 10107 | 194 962 461 531 13 1921 2332 719 2974 Spaces Moved 5721 | 99 829 340 446 12 1029 1260 280 1426 Core 65 | 3 . . . . 43 . . 19 Treads 313 | . . . . . . 70 6 237 Legs 17 | . . . . . 3 8 . 6 Wheels 5281 | 96 829 340 446 12 983 1182 274 1119 Hover 45 | . . . . . . . . 45 Flight . | . . . . . . . . . Fastest Speed 50 | 50 80 95 115 115 100 110 110 56 Average Speed 130 | 91 94 96 115 115 125 140 141 158 Slowest Speed 330 | 95 95 100 115 115 300 260 250 330 Overloaded Moves . | . . . . . . . . . Propulsion Burnouts . | . . . . . . . . . Robots Hopped . | . . . . . . . . . Potential Cave-ins . | . . . . . . . . . Cave-ins Triggered . | . . . . . . . . . Exploration Rate (%) 50 | 5 96 65 91 7 75 35 55 25 Regions Visited 8 Branch Regions 4 Pre-discovered Areas 1 | . . 1 . . . . . . Known Exits Taken 1 | . . . . . 1 . . . Unknown Exits Taken 7 | 1 1 1 1 1 . 1 1 . Scrap Searched 1 | . . 1 . . . . . . Spaces Dug 11 | . 5 . . . 6 . . . Terrain Destroyed 78 | . 5 . . . 15 31 . 27 Melee . | . . . . . . . . . Projectile 7 | . . . . . . . . 7 AOE 71 | . 5 . . . 15 31 . 20 Terrain Rammed . | . . . . . . . . . Walls Destroyed . | . . . . . . . . . Machines Disabled . | . . . . . . . . . Actions | -11 -10 -10 -10 -9 -8 -7 -7 -6 --------- Run | Yrd Mat Min Exi Min Mat Fac Sto Fac Total 7530 | 164 953 418 463 11 1475 1673 469 1904 Wait 967 | 28 77 34 14 . 253 261 73 227 Move 5713 | 98 828 339 445 11 1028 1259 279 1426 Hop . | . . . . . . . . . Pick Up 108 | 11 9 4 1 . 29 16 9 29 Fast Attach 38 | . 3 . . . 7 12 1 15 Attach 88 | 7 2 3 1 . 21 15 10 29 Detach 9 | . . . . . 3 2 3 1 Swap 35 | . 2 . 2 . 12 3 6 10 Drop 74 | . 6 3 . . 22 21 5 17 Fire 466 | 20 26 35 . . 99 80 66 140 Melee . | . . . . . . . . . Ram 5 | . . . . . 1 . . 4 Kick 1 | . . . . . . . . 1 Crush 11 | . . . . . . 4 2 5 Escape Stasis 8 | . . . . . . . 8 . Rewire . | . . . . . . . . . Trap . | . . . . . . . . . Miscellaneous 7 | . . . . . . . 7 . Route ------- -11/Scrapyard -10/Materials (discovered 6 exits: [*Mat x3] / *Min x2 / [*Sub]) -10/Mines (discovered 2 exits: [*Mat] / *Exi) -10/Exiles -9/Mines -8/Materials (discovered 3 exits: *Fac x3) -7/Factory (discovered 2 exits: *Sto / [*Low]) -7/Storage -6/Factory (discovered 1 exit: [*Fac]) History --------- Turn | Location | Event 23 | -11/Scrapyard | Discovered new exit (range 15) 195 | -11/Scrapyard | Entered Materials 308 | -10/Materials | Build established: Mutant 323 | -10/Materials | Discovered new exit (range 9) 464 | -10/Materials | Discovered new exit (range 12) 591 | -10/Materials | Discovered new exit (range 6) 683 | -10/Materials | Discovered new exit (range 8) 904 | -10/Materials | Discovered new exit (range 13) 1075 | -10/Materials | Discovered new exit (range 15) 1157 | -10/Materials | Entered Mines 1158 | -10/Mines | Discovered new exit (range 10) 1385 | -10/Mines | Learned Materials emergency access door positions 1585 | -10/Mines | Learned location of Storage (-7) 1614 | -10/Mines | Deemed a non-threat by the Exiles lab entrance 1614 | -10/Mines | Discovered new exit (range 5) 1618 | -10/Mines | Entered Exiles 1661 | -10/Exiles | Met 8R-AWN 1679 | -10/Exiles | Met EX-HEX 1759 | -10/Exiles | Met EX-BIN 1771 | -10/Exiles | Aligned with FarCom system 1773 | -10/Exiles | Given EX-Vault access code 1830 | -10/Exiles | Opened EX-Vault 1835 | -10/Exiles | Found Prototype Special Weapon 1836 | -10/Exiles | Identified Field Lobotomy Kit 1877 | -10/Exiles | Warned to stay clear of 0b10 Research branches 1907 | -10/Exiles | Met EX-DEC 1943 | -10/Exiles | Visited The Gauntlet 2134 | -10/Exiles | Discovered new exit (range 15) 2149 | -10/Exiles | Left Exiles lab with Field Lobotomy Kit 2149 | -10/Exiles | Entered Mines 2150 | -9/Mines | Met a Derelict testing a Signal Generator 2154 | -9/Mines | Discovered new exit (range 8) 2162 | -9/Mines | Entered Materials 2162 | -8/Materials | Evolved 4 slots: Power x1, Propulsion x1, Utility x2 2374 | -8/Materials | Lost 3 parts (1p1n1w) 2419 | -8/Materials | Assimilated H-55 Commando with FLK Orb 2446 | -8/Materials | Lost 7 parts (1p3n1u2w) 2563 | -8/Materials | Assimilated H-61 Shepherd with FLK Orb 2804 | -8/Materials | Discovered new exit (range 3) 2838 | -8/Materials | Build established: Scavenger-Mutant 3127 | -8/Materials | Garrison activated, responded to threat 3851 | -8/Materials | Discovered new exit (range 16) 3951 | -8/Materials | Build established: Mutant 4025 | -8/Materials | Identified exit to Factory 4083 | -8/Materials | Entered Factory 4083 | -7/Factory | Evolved 2 slots: Utility x2 4149 | -7/Factory | Repaired Imp. Carbon-fiber Leg 5091 | -7/Factory | Discovered new exit (range 12) 5404 | -7/Factory | Fabricated Arm. Treads (x2) 5700 | -7/Factory | Build established: Scavenger-Mutant 5704 | -7/Factory | Lost 3 parts (1p1u1w) 6208 | -7/Factory | Discovered new exit (range 7) 6415 | -7/Factory | Entered Storage 6762 | -7/Storage | Build established: Hacker-Mutant 6982 | -7/Storage | Discovered new exit (range 17) 7117 | -7/Storage | Lost 13 allies 7134 | -7/Storage | Destroyed 9 combat bots 7134 | -7/Storage | Entered Factory 7134 | -6/Factory | Evolved 2 slots: Utility x1, Weapon x1 7659 | -6/Factory | Build established: Hacker-Skirmisher 8467 | -6/Factory | Lost 4 parts (1p1n1u1w) 8551 | -6/Factory | Discovered new exit (range 8) 9582 | -6/Factory | Lost 7 parts (2p2u3w) 9950 | -6/Factory | Fabricated Hrd. Medium Armor Plating? 9979 | -6/Factory | Core integrity fell below 50% 9990 | -6/Factory | Assimilated G-50 Soldier with FLK Orb 10010 | -6/Factory | Assimilated G-50 Soldier with FLK Orb 10013 | -6/Factory | Assimilated P-60 Hacker with FLK Orb 10030 | -6/Factory | Lost 12 parts (3p4n1u4w) 10072 | -6/Factory | Core integrity fell below 20% 10108 | -6/Factory | Destroyed by S-27 Virus with Autogun Last Messages --------------- Carbon-fiber Leg (88%). 10096_ Carbon-fiber Leg discarded by recycling unit. 10097_ Acquired Carbon-fiber Leg. 10099_ R-10 Processor inserts Lgt. Ion Engine into recycling unit. 10099_ >> MONITOR: Recycling Unit F005 accepting Lgt. Ion Engine (92%). 10099_ Lgt. Ion Engine discarded by recycling unit. 10100_ Acquired Hvy. Laser. 10101_ M-28 Smith repairs S-27 Virus VTOL Module. 10102_ D1N%MV>ZPGS=WWKHDKCRYN/%EQNNUTF,&Q6EKG 10103_ Hrd. Medium Armor Plating destroyed. 10104_ K-01 Serf cleans the Fusion Modulator. 10105_ Acquired Carbon-fiber Leg. 10105_ M-28 Smith repairs S-27 Virus VTOL Module. 10107_ Dropped Gravmag System. Map ----- +----------------------------------------------------+ | ???????# """""" #??????# """ ## | | ???????# """""" #??????# """ ## "" "" | | ???????# #??????# """ ## ""F"" | | ???????# #??????# """ + % | | ???????# =%"" #??????# ! ## | | ???????# !* Y" #??????# ## | | ???????# ! "" #??????# ##########+## | | ???????# % =* #??????###########?????#%% | | ???????# %| ! ##?????????????????????##"" " | | ???????######## ##??????????????????????#""" | | ?????????????## ###########?????????????#"""" | | ?????????????## ??????????#"""" | | ?????????????## =[ #?????????#"""" | | ????#######??##[ = #??????????"""" | | ############### * #?????????????? | | RR #??????????????? | | #######+################+#### #??????????????? | | ] # #???????????????# #??????????????? | | # #???????????????# #??????????????? | | # #???????????????# +??????????????? | | # #???????????????# #??????????????? | | # #??############## #??????????????? | | # #??# """ # #??????????????? | | = # #??# "Y" # #??????????????? | | # #??# """ "*" # ########???????? | | # #??# """ =@s # """" #???????? | | ######+###??# """ ss #^ ""F" ##??????? | | #????# #????# RR + """ "#??????? | | #????# #????# """ """ m# """ "#??????? | | ####????# #????# """ """ # """ "#??????? | | ????????# #????# """ """ #! ^ T#??????? | | ????????# ###### # """ """ "#??????? | | ????????# + # """ """ "#??????? | | ????????######## # """ """ "#??????? | | #####??????????############## ##??????? | | #???????????????????????# ######### | | T #???????????????????????# ] # ! | | #?????????????????#########+#### # | | ///#?????????????????# # # | | // #?????????????????# # # | | // #?????????????????# + # | | #####?????????????????# ! w # # | | ??????????????????????# # # | | ??????????????????????# # # | | ??????????????????????# "" "" # # | | ??????????????????????# "" "" # |# | | ??????????????????????# """ """ # #% | | ??????????????????????# """ """ # %%+%% | | ??????????????????????#???""" """ # !!##+###### | | ???????????????????????????? ?? # = # % ! | +----------------------------------------------------+ Best States ------------- Heat Dissipation 75 Energy Generation 34 Energy Capacity 700 Matter Stores 300 Matter Capacity 300 Sight Range 16 Terrain Scan Range 16 Terrain Scan Density 110 Base Temperature (-) 100 Armor Coverage 450 Evasion (%) 53 Targeting Accuracy 20 Target Analysis 5 Recoil Reduction 2 Particle Charging 15 Offensive Hacking 32 Item Schematics ----------------- Minigun | -8/Materials | Scanalyzed Assault Rifle | -8/Materials | Scanalyzed Grenade Launcher | -8/Materials | Scanalyzed Hcp. Matter Pod | -8/Materials | Scanalyzed Wheel | -8/Materials | Scanalyzed Beam Cannon | -8/Materials | Scanalyzed Arm. Treads | -8/Materials | Scanalyzed Hrd. Medium Armor Plating | -8/Materials | Scanalyzed Hacking Suite | -8/Materials | Scanalyzed Imp. Datajack | -8/Materials | Scanalyzed Field Laser | -8/Materials | Scanalyzed Hvy. Plasma Cannon | -7/Storage | Hacked Robot Schematics ------------------ None Fabricated ------------ Arm. Treads | x2 | -7/Factory Hrd. Medium Armor Plating | x2 | -6/Factory Repaired ---------- Imp. Carbon-fiber Leg | 36% | -7/Factory Alien Tech Used ----------------- None Achievements -------------- None Challenges ------------ None Game ------ Seed UltimateCloakSaw Manual? 0 Play Time 02:19:34 Cumulative 46.9 hours Start 2025.09.28 @ 16:18:14 End 2025.10.01 @ 21:53:17 Sessions 7 Manual Loads 0 Difficulty Rogue Special Mode None Game No. 83 Rogue 83 Adventurer 0 Explorer 0 Win Type - Total 0 Types 0/0/0/0/0/0/0/0/0/0 Lore% 11 Gallery% 21 Achievement% 27 Wizard Run 0 Options --------- Layout 1 ASCII 0 Keyboard 0 Movement Numpad Keybinds 0 Fullscreen 2 Font 24/Smallcaps Map View 50x35 Zoom Use 0% Tactical HUD 1 Map Filters NONE Filters NONE Steam 1 RUN: e0055773-b14d-4078-8150-c97b42a0207f